{"text_format":"3","workbook":"xlsx","n_sheets":4,"sheets":["Inicio","Gastos","Ingresos","Resumen de beneficios y pérdida"],"not_rendered":{"charts":1},"read":"whole","date_system":"1900"}

{"sheet":"Inicio","index":0,"n_rows":8,"n_cols":2,"rows_kept":8}
[null,"INFORMACIÓN SOBRE ESTA PLANTILLA"]
[null,"Use este libro Presupuesto del evento para realizar un seguimiento de los Gastos generados y los Ingresos obtenidos de un evento."]
[null,"Rellene el Nombre del evento y escriba la información en tablas en la hoja de cálculo Gastos y la hoja de cálculo Ingresos."]
[null,"El Gastos totales y el Ingresos totales se calculan automáticamente."]
[null,"El resumen y el gráfico de Ganancias y Pérdidas se actualizan automáticamente en la hoja de cálculo Resumen de beneficios y pérdida."]
[null,"Nota: "]
[null,"Se facilitan instrucciones adicionales en la columna A de cada hoja de cálculo. Este texto se ha ocultado a propósito. Para eliminar el texto, seleccione la columna A y, a continuación, ELIMINAR. "]
[null,"Para obtener más información sobre las tablas, presione las teclas MAYÚS y F10 dentro de una tabla, seleccione la opción TABLA y, a continuación, TEXTO ALTERNATIVO"]

{"sheet":"Gastos","index":1,"n_rows":32,"n_cols":8,"rows_kept":32,"merged":[[0,1,0,2],[0,3,0,4],[2,1,3,1]]}
["Escriba los gastos Estimados y Reales de cada categoría en las tablas correspondientes de la hoja de cálculo y el Nombre del evento en la celda D1 para personalizar el título de esta y otras hojas de cálculo. El subtítulo de esta hoja de cálculo está en la celda H1. Encontrará instrucciones útiles sobre cómo usar esta hoja de cálculo en las celdas de esta columna. La instrucción siguiente se encuentra en la celda A3.","Presupuesto de evento para",null,"Nombre del evento",{"$nulls":3},"GASTOS"]
[]
["La etiqueta Gastos totales se encuentra en la celda a la derecha, la etiqueta Estimados en la celda G3 y Reales en la celda H3.","GASTOS TOTALES",{"$nulls":4},"Estimado","Real"]
["Los gastos estimados totales en la celda G4 y los gastos reales totales en H4 se calculan automáticamente. La instrucción siguiente se encuentra en la celda A6.",{"$nulls":5},{"$f":"SUM(C11,C19,C25,C32,G11,G19,G24)","v":{"v":882,"d":"882.00 €"}},{"$f":"SUM(D11,D19,D25,D32,H11,H19,H24)","v":{"v":302,"d":"302.00 €"}}]
[]
["Escriba los gastos de sitio en la tabla que comienza en la celda de la derecha y los gastos de comida en la tabla que comienza en la celda F6. La instrucción siguiente se encuentra en la celda A13.","Sitio","Estimado","Real",null,"Aperitivos","Estimado","Real"]
[null,"Gastos de sala y auditorio",{"v":500,"d":"500.00 €"},null,null,"Comida"]
[null,"Personal del sitio",{"$nulls":3},"Bebidas",{"v":20,"d":"20.00 €"}]
[null,"Equipamiento",{"$nulls":3},"Mantelería",null,{"v":20,"d":"20.00 €"}]
[null,"Mesas y sillas",{"$nulls":3},"Personal y compensaciones"]
[null,"Total",{"$f":"SUBTOTAL(109,SiteExpenses[Estimado])","v":{"v":500,"d":"500.00 €"}},{"$f":"SUBTOTAL(103,SiteExpenses[Real])","v":{"v":0,"d":"0.00 €"}},null,"Total",{"$f":"SUBTOTAL(109,RefreshmentsExpenses[Estimado])","v":{"v":20,"d":"20.00 €"}},{"$f":"SUBTOTAL(103,RefreshmentsExpenses[Real])","v":{"v":1,"d":"1.00 €"}}]
[]
["Escriba los gastos de decoración en la tabla que comienza en la celda de la derecha y los gastos de programa en la tabla que comienza en la celda F13. La instrucción siguiente se encuentra en la celda A21.","Decoraciones","Estimado","Real",null,"Programa","Estimado","Real"]
[null,"Flores",{"v":200,"d":"200.00 €"},{"v":300,"d":"300.00 €"},null,"Artistas"]
[null,"Velas",{"$nulls":3},"Altavoces",{"v":30,"d":"30.00 €"}]
[null,"Iluminación",{"$nulls":3},"Viaje"]
[null,"Globos",{"$nulls":3},"Hotel"]
[null,"Suministros de papel",{"$nulls":3},"Otros"]
[null,"Total",{"$f":"SUBTOTAL(109,DecorationsExpenses[Estimado])","v":{"v":200,"d":"200.00 €"}},{"$f":"SUBTOTAL(109,DecorationsExpenses[Real])","v":{"v":300,"d":"300.00 €"}},null,"Total",{"$f":"SUBTOTAL(109,ProgramExpenses[Estimado])","v":{"v":30,"d":"30.00 €"}},{"$f":"SUBTOTAL(103,ProgramExpenses[Real])","v":{"v":0,"d":"0.00 €"}}]
[]
["Escriba los gastos de publicidad en la tabla que comienza en la celda de la derecha y los gastos de premios en la tabla que comienza en la celda F21. La instrucción siguiente se encuentra en la celda A27.","Publicidad","Estimado","Real",null,"Premios","Estimado","Real"]
[null,"Trabajo de gráficos",{"$nulls":3},"Cintas, placas y trofeos"]
[null,"Fotocopias e impresión",{"v":20,"d":"20.00 €"},null,null,"Regalos",{"v":100,"d":"100.00 €"}]
[null,"Gastos de envío",{"$nulls":3},"Total",{"$f":"SUBTOTAL(109,PrizesExpenses[Estimado])","v":{"v":100,"d":"100.00 €"}},{"$f":"SUBTOTAL(103,PrizesExpenses[Real])","v":{"v":0,"d":"0.00 €"}}]
[null,"Total",{"$f":"SUBTOTAL(109,PublicityExpenses[Estimado])","v":{"v":20,"d":"20.00 €"}},{"$f":"SUBTOTAL(103,PublicityExpenses[Real])","v":{"v":0,"d":"0.00 €"}}]
[]
["Escriba los gastos varios en la tabla que comienza en la celda de la derecha.","Varios","Estimado","Real"]
[null,"Teléfono",null,{"v":13,"d":"13.00 €"}]
[null,"Transporte",{"v":12,"d":"12.00 €"}]
[null,"Suministros de papelería"]
[null,"Servicios de fax"]
[null,"Total",{"$f":"SUBTOTAL(109,MiscellaneousExpenses[Estimado])","v":{"v":12,"d":"12.00 €"}},{"$f":"SUBTOTAL(103,MiscellaneousExpenses[Real])","v":{"v":1,"d":"1.00 €"}}]

{"sheet":"Ingresos","index":2,"n_rows":29,"n_cols":7,"rows_kept":29,"merged":[[0,1,0,2],[2,1,3,1]]}
["Escriba los ingresos estimados y reales de cada categoría en las respectivas tablas de esta hoja de cálculo. El título de esta hoja de cálculo se actualiza automáticamente en la celda a la derecha. El título se encuentra en la celda G1. Encontrará instrucciones útiles sobre cómo usar esta hoja de cálculo en las celdas de esta columna. La instrucción siguiente se encuentra en la celda A3.",{"$f":"Gastos!B1","v":"Presupuesto de evento para"},null,{"$f":"Gastos!D1","v":"Nombre del evento"},null,null,"INGRESOS"]
[]
["La etiqueta Ingresos totales se encuentra en la celda a la derecha, la etiqueta Estimados en la celda F3 y Reales en la celda G3.","INGRESOS TOTALES",{"$nulls":3},"Estimado","Real"]
["El total de ingresos estimados se calcula automáticamente en la celda F4 y el total de ingresos reales en G4.",{"$nulls":4},{"$f":"SUM(Admisiones[[#Totals],[Ingresos estimados]],AnuncioDePrograma[[#Totals],[Ingresos estimados]],ExhibitorsAndVendors[[#Totals],[Ingresos estimados]],VentaDeProductos[[#Totals],[Ingresos estimados]])","v":{"v":1936,"d":"1,936.00 €"}},{"$f":"SUM(Admisiones[[#Totals],[Ingresos reales]],AnuncioDePrograma[[#Totals],[Ingresos reales]],ExhibitorsAndVendors[[#Totals],[Ingresos reales]],VentaDeProductos[[#Totals],[Ingresos reales]])","v":{"v":1831,"d":"1,831.00 €"}}]
["La etiqueta Admisiones se encuentra en la celda de la derecha.","ADMISIONES"]
["Escriba el número de admisiones estimadas y reales con tarifas de entradas en la tabla que comienza en la celda a la derecha. Los ingresos por admisiones estimados y reales se calculan automáticamente. La instrucción siguiente se encuentra en la celda A11.","Número estimado","Número real","Tipo","Precio","Ingresos estimados","Ingresos reales"]
[null,300,278,"Adultos @",{"v":5,"d":"5.00 €"},{"$f":"B7*E7","v":{"v":1500,"d":"1,500.00 €"}},{"$f":"C7*E7","v":{"v":1390,"d":"1,390.00 €"}}]
[null,197,195,"Niños @",{"v":2,"d":"2.00 €"},{"$f":"B8*E8","v":{"v":394,"d":"394.00 €"}},{"$f":"C8*E8","v":{"v":390,"d":"390.00 €"}}]
[null,42,51,"Otros @",{"v":1,"d":"1.00 €"},{"$f":"B9*E9","v":{"v":42,"d":"42.00 €"}},{"$f":"C9*E9","v":{"v":51,"d":"51.00 €"}}]
[null,"Total",{"$nulls":3},{"$f":"SUBTOTAL(109,Admisiones[Ingresos estimados])","v":{"v":1936,"d":"1,936.00 €"}},{"$f":"SUBTOTAL(109,Admisiones[Ingresos reales])","v":{"v":1831,"d":"1,831.00 €"}}]
["La etiqueta Anuncios en el programa se encuentra en la celda de la derecha.","ANUNCIO DE PROGRAMA"]
["Escriba el número de Anuncios en el programa estimados y reales con tarifas de Anuncios en la tabla que comienza en la celda a la derecha. Los ingresos por anuncios estimados y reales se calculan automáticamente. La instrucción siguiente está en la celda A17.","Número estimado","Número real","Tipo","Precio","Ingresos estimados","Ingresos reales"]
[null,12,null,"Portadas @",null,{"$f":"B13*E13","v":{"v":0,"d":"0.00 €"}},{"$f":"C13*E13","v":{"v":0,"d":"0.00 €"}}]
[null,null,158,"Medias páginas @",null,{"$f":"B14*E14","v":{"v":0,"d":"0.00 €"}},{"$f":"C14*E14","v":{"v":0,"d":"0.00 €"}}]
[null,4,null,"Cuartos de página @",null,{"$f":"B15*E15","v":{"v":0,"d":"0.00 €"}},{"$f":"C15*E15","v":{"v":0,"d":"0.00 €"}}]
[null,"Total",{"$nulls":3},{"$f":"SUBTOTAL(109,AnuncioDePrograma[Ingresos estimados])","v":{"v":0,"d":"0.00 €"}},{"$f":"SUBTOTAL(109,AnuncioDePrograma[Ingresos reales])","v":{"v":0,"d":"0.00 €"}}]
["La etiqueta Expositores o proveedores se encuentra en la celda a la derecha.","EXPOSITORES Y PROVEEDORES"]
["Escriba el número de Expositores o proveedores estimados y reales con tarifas de puestos en la tabla que comienza en la celda a la derecha. Los ingresos estimados y reales se calculan automáticamente. La instrucción siguiente se encuentra en la celda A23.","Número estimado","Número real","Tipo","Precio","Ingresos estimados","Ingresos reales"]
[null,23,null,"Stands grandes @",null,{"$f":"B19*E19","v":{"v":0,"d":"0.00 €"}},{"$f":"C19*E19","v":{"v":0,"d":"0.00 €"}}]
[null,354,null,"Stands medianos @",null,{"$f":"B20*E20","v":{"v":0,"d":"0.00 €"}},{"$f":"C20*E20","v":{"v":0,"d":"0.00 €"}}]
[null,56,null,"Stands pequeños @",null,{"$f":"B21*E21","v":{"v":0,"d":"0.00 €"}},{"$f":"C21*E21","v":{"v":0,"d":"0.00 €"}}]
[null,"Total",{"$nulls":3},{"$f":"SUBTOTAL(109,ExhibitorsAndVendors[Ingresos estimados])","v":{"v":0,"d":"0.00 €"}},{"$f":"SUBTOTAL(109,ExhibitorsAndVendors[Ingresos reales])","v":{"v":0,"d":"0.00 €"}}]
["La etiqueta Venta de productos se encuentra en la celda de la derecha.","VENTA DE PRODUCTOS"]
["Escriba el número de Ventas de productos estimadas y reales con los precios de los productos en la tabla que comienza en la celda a la derecha. Los ingresos estimados y reales se calculan automáticamente.","Número estimado","Número real","Tipo","Precio","Ingresos estimados","Ingresos reales"]
[{"$nulls":3},"Artículos @",null,{"$f":"B25*E25","v":{"v":0,"d":"0.00 €"}},{"$f":"C25*E25","v":{"v":0,"d":"0.00 €"}}]
[null,123,null,"Artículos @",null,{"$f":"B26*E26","v":{"v":0,"d":"0.00 €"}},{"$f":"C26*E26","v":{"v":0,"d":"0.00 €"}}]
[{"$nulls":3},"Artículos @",null,{"$f":"B27*E27","v":{"v":0,"d":"0.00 €"}},{"$f":"C27*E27","v":{"v":0,"d":"0.00 €"}}]
[null,13,null,"Artículos @",null,{"$f":"B28*E28","v":{"v":0,"d":"0.00 €"}},{"$f":"C28*E28","v":{"v":0,"d":"0.00 €"}}]
[null,"Total",{"$nulls":3},{"$f":"SUBTOTAL(109,VentaDeProductos[Ingresos estimados])","v":{"v":0,"d":"0.00 €"}},{"$f":"SUBTOTAL(109,VentaDeProductos[Ingresos reales])","v":{"v":0,"d":"0.00 €"}}]

{"sheet":"Resumen de beneficios y pérdida","index":3,"n_rows":8,"n_cols":7,"rows_kept":8,"merged":[[0,1,0,2]]}
["El resumen y el gráfico de ganancias y pérdidas que muestra el Total de ingresos y gastos se actualiza automáticamente en esta hoja de cálculo. El título de esta hoja de cálculo se actualiza automáticamente en la celda a la derecha. El subtítulo se encuentra en las celdas G1 y G2. Encontrará instrucciones útiles sobre cómo usar esta hoja de cálculo en las celdas de esta columna. La instrucción siguiente se encuentra en la celda A3.",{"$f":"Gastos!B1","v":"Presupuesto de evento para"},null,{"$f":"Gastos!D1","v":"Nombre del evento"},null,null,"BENEFICIOS "]
[{"$nulls":6},"Resumen de pérdidas"]
["El gráfico de barras que compara los gastos estimados y reales está en la celda E3.",{"$nulls":3},"El gráfico de barras que muestra la comparación entre los gastos e ingresos estimados y los gastos e ingresos reales está en esta celda."]
["La tabla de resumen que comienza en la celda a la derecha también se actualiza automáticamente. La instrucción siguiente se encuentra en la celda A8."," Total","Estimado","Real"]
[null,"Ingresos totales",{"$f":"Ingresos!F10","v":{"v":1936,"d":"1,936.00 €"}},{"$f":"Ingresos!F4","v":{"v":1936,"d":"1,936.00 €"}}]
[null,"Gastos totales",{"$f":"Gastos!G4","v":{"v":882,"d":"882.00 €"}},{"$f":"Gastos!H4","v":{"v":302,"d":"302.00 €"}}]
[]
["El total de beneficios o pérdidas estimado se calcula automáticamente en la celda C8 y el total de beneficios o pérdidas reales en la celda D8.","Beneficio total\n(o pérdida)",{"$f":"C5-C6","v":{"v":1054,"d":"1,054.00 €"}},{"$f":"D5-D6","v":{"v":1634,"d":"1,634.00 €"}}]